[Event "35th Roquetas Festival 2024"]
[Site "Roquetas de Mar"]
[Date "2024.01.03"]
[Round "2.3"]
[White "Vingris, Mikelis"]
[Black "Bernadskiy, Vitaliy"]
[Result "1/2-1/2"]
[ECO "A11"]
[WhiteElo "2248"]
[BlackElo "2566"]
[Annotator "TA"]
[PlyCount "38"]
[EventDate "2024.01.02"]
[EventType "swiss"]
[EventCountry "ESP"]
[SourceTitle "playchess.com"]
[Source "ChessBase"]
[SourceQuality "1"]
[TimeControl "5400+30"]

{[%evp 9,38,32,83,83,77,75,79,76,81,86,91,79,135,114,130,150,145,128,141,131,145,64,70,63,141,139,158,34,58,38,64]} 1. e4 {[%emt 0:00:02]} a6 {[%emt 0:00:04]} 2. d4 {[%emt 0:02:11]} c6 {[%emt 0:01:24]} 3. Bd3 {[%emt 0:05:07]} d5 {[%emt 0:02:09]} 4. e5 {[%emt 0:02:03]} c5 {[%emt 0:00:15]} 5. dxc5 {[%emt 0:02:36]} Nc6 {[%emt 0:00:12]} (5... e6 $14) 6. f4 $1 $16 {[%emt 0:11:13] B00: Queen's Fianchetto Defence, Nimzowitsch Defence.} Qa5+ {[%emt 0:06:03]} 7. Nd2 {[%emt 0:10:04]} Qxc5 {[%emt 0:02:32]} 8. Nb3 {[%emt 0:01:29] White is better.} Qb6 {[%emt 0:00:04] [#]} 9. Nf3 $146 {[%emt 0:03:00]} ({Predecessor:} 9. Qe2 Nh6 10. Nf3 Bg4 11. h3 Bxf3 12. Qxf3 e6 13. Be3 Qc7 14. O-O a5 15. c3 {0-1 Nurmanova,A (2281)-Purtseladze,M (2274) Motiva Online Blitz (Women) 2021 (9)}) 9... Nh6 {[%emt 0:00:17]} 10. c3 {[%emt 0:08:45]} Bg4 {[%emt 0:09:40]} ({Less strong is} 10... Ng4 11. Qe2 $16) (10... Nf5 $142) 11. h3 $36 {[%emt 0:04:13][%mdl 2048] Black is under strong pressure.} Bf5 {[%emt 0:00:29]} 12. g4 {[%emt 0:06:27]} Bxd3 {[%emt 0:01:09]} 13. Qxd3 {[%emt 0:00:06]} e6 {[%emt 0:00:08]} 14. Be3 {[%emt 0:05:40]} Qc7 {[%emt 0:00:03]} 15. O-O {[%emt 0:01:25]} (15. O-O-O $16) 15... Ng8 $1 $14 {[%emt 0:00:23]} 16. Rae1 {[%emt 0:06:42] White has more active pieces.} O-O-O {[%emt 0:04:24] [#]} (16... h5 $1 $14) 17. f5 $1 $16 {[%emt 0:02:51]} h5 {[%emt 0:01:55] [#]} (17... Nxe5 $2 18. Nxe5 f6 19. Nd4 fxe5 20. Nxe6) 18. Nbd4 {[%emt 0:00:56]} ({Better is} 18. g5 $1 $16) 18... hxg4 $14 {[%emt 0:00:22]} (18... Nxe5 $2 19. Nxe5 hxg4 20. Bf4 Rxh3 21. Qe2 $18) 19. hxg4 {[%emt 0:05:40]} Nxd4 {[%emt 0:10:58] Weighted Error Value: White=0.18 (very precise) /Black=0.13 (very precise)} (19... Nxe5 $2 20. Nxe5 Qxe5 21. Bf4 $18) 1/2-1/2

[Event "35th Roquetas Festival 2024"]
[Site "Roquetas de Mar"]
[Date "2024.01.03"]
[Round "2.4"]
[White "Sosa, Tomas"]
[Black "Serrano Almendros, Angel"]
[Result "1-0"]
[ECO "B30"]
[WhiteElo "2554"]
[BlackElo "2250"]
[Annotator "TA"]
[PlyCount "97"]
[EventDate "2024.01.02"]
[EventType "swiss"]
[EventCountry "ESP"]
[SourceTitle "playchess.com"]
[Source "ChessBase"]
[SourceQuality "1"]
[TimeControl "5400+30"]

{[%evp 10,97,10,14,24,9,12,12,46,13,52,52,50,40,42,36,43,10,42,47,69,52,50,47,56,53,118,61,60,39,80,72,79,76,138,153,151,141,125,131,137,133,123,124,136,139,132,87,107,94,212,195,272,283,266,146,233,131,143,120,113,122,435,451,489,465,466,468,564,568,594,546,648,611,635,641,583,466,595,539,29980,29973,29981,29982,29988,29989,29989,29990,29990,29988]} 1. e4 {[%emt 0:07:25]} c5 {[%emt 0:00:02]} 2. Nf3 {[%emt 0:00:15]} Nc6 {[%emt 0:00:04]} 3. Bb5 {[%emt 0:04:34]} e6 {[%emt 0:00:21][%cal Be7e6,Be6e5][%mdl 32]} 4. Bxc6 bxc6 {[%emt 0:00:18]} 5. d3 {[%emt 0:00:27]} Ne7 {[%emt 0:02:29]} 6. Qe2 {[%emt 0:01:41]} d6 {[%emt 0:00:04] B30: Sicilian: 2...Nc6 3 Bb5, lines without ...g6.} 7. O-O {[%emt 0:03:46]} e5 {[%emt 0:02:05]} 8. c3 {[%emt 0:00:07] [#]} g6 $146 {[%emt 0:20:39] The position is equal.} ({Predecessor:} 8... Ba6 9. Rd1 g6 10. Qc2 Bg7 11. d4 cxd4 12. cxd4 exd4 13. Nxd4 Bb7 14. Bf4 O-O {1-0 Liang,A (2592)-Niemann,H (2467) USA-ch U20 Saint Louis 2019 (5)}) 9. Rd1 {[%emt 0:01:09]} Bg7 {[%emt 0:00:27]} 10. d4 $1 {[%emt 0:00:40]} cxd4 {[%emt 0:02:14]} 11. cxd4 {[%emt 0:00:03]} exd4 {[%emt 0:00:06]} 12. Nxd4 {[%emt 0:00:14]} Qb6 {[%emt 0:00:32]} 13. Nb3 {[%emt 0:04:48]} Ba6 {[%emt 0:02:45] This pair of bishops is nice.} 14. Qc2 {[%emt 0:00:22]} Rd8 {[%emt 0:02:57]} 15. Bd2 {[%emt 0:09:52]} Rd7 {[%emt 0:05:25]} 16. Ba5 {[%emt 0:02:52]} Qb7 {[%emt 0:01:29]} 17. Bc3 $36 {[%emt 0:03:17][%mdl 2048] White is more active.} f6 {[%emt 0:01:28]} ({Better is} 17... O-O $14) 18. Qd2 {[%emt 0:08:22]} (18. Na3 $16) 18... Nc8 $14 {[%emt 0:05:35]} 19. Na3 {[%emt 0:02:15]} (19. Na5 $5 {[%cal Ra5b7]} Qc7 20. Na3 $11) 19... Re7 {[%emt 0:04:17]} 20. Na5 {[%emt 0:02:33]} Qc7 {[%emt 0:02:03]} 21. Rac1 {[%emt 0:01:48][%cal Oc3f6]} Rxe4 {[%emt 0:07:08] [#]} (21... O-O $142) 22. Nxc6 $1 $16 {[%emt 0:05:16][%mdl 512]} Qxc6 {[%emt 0:05:59] [#]} 23. Bxf6 $1 {[%emt 0:00:16][%mdl 576] Discovered Attack} Qb7 {[%emt 0:02:59]} 24. Bxg7 {[%emt 0:00:21][%mdl 64] Deflection} (24. Rxc8+ $6 Qxc8 25. Bxg7 Rg8 $11) 24... Qxg7 {[%emt 0:00:55]} 25. Qd5 {[%emt 0:00:06]} Re7 {[%emt 0:10:05] And now ...Bb7 would win.} 26. Qc6+ {[%emt 0:06:01]} Kf7 {[%emt 0:00:03] Strongly threatening ...Bb7.} 27. Qxa6 {[%emt 0:00:06]} Qxb2 {[%emt 0:00:16]} 28. Nb5 {[%emt 0:09:40]} Qe2 {[%emt 0:00:55]} 29. Qa5 {[%emt 0:02:11]} Rhe8 {[%emt 0:00:49] [#]} (29... Rf8 $16) 30. Nc7 $1 $18 {[%emt 0:02:05]} (30. Nxd6+ $2 Nxd6 31. Qd5+ (31. Rxd6 $2 Qe1+ {[%mdl 64] Back Rank} 32. Rxe1 Rxe1+ {[%mdl 64] Back Rank}) 31... Kg7 $19) 30... Re5 {[%emt 0:03:01]} (30... Rf8 $142 31. Nd5 Rb7) 31. Qc3 {[%emt 0:00:22]} (31. Qa4 $2 Qe1+ 32. Rxe1 Rxe1+ 33. Rxe1 Rxe1#) 31... Rd8 {[%emt 0:01:00]} 32. Qb3+ {[%emt 0:09:49]} (32. Re1 $6 Qxa2 33. f4 Rc5 $18) (32. h3 $18) 32... Kf8 {[%emt 0:01:20] [#]} (32... Kg7 $16 {might work better.}) 33. Nd5 {[%emt 0:01:19]} (33. h3 $1 $18) 33... Ne7 $16 {[%emt 0:00:31] aiming for ...Nxd5.} 34. Nf4 {[%emt 0:01:18]} Qe4 {[%emt 0:01:10]} 35. g3 {[%emt 0:01:18] White is more active.} d5 $2 {[%emt 0:07:44][%mdl 8192] This move loses the game for Black.} (35... g5 $16 {is more resistant.}) 36. Nd3 $18 {[%emt 0:00:29]} ({Not} 36. Rc7 Qf5 37. Rxa7 Kg8 38. Rxe7 Rxe7 $18) 36... Rf5 {[%emt 0:00:14]} 37. Re1 {[%emt 0:01:38]} Qd4 {[%emt 0:00:35]} 38. Rc7 {[%emt 0:02:44] Intending Qa3 and mate.} Re8 {[%emt 0:00:59]} 39. Qa3 {[%emt 0:00:22][%csl LRa7,LRe7][%cal Re1e7]} Rf7 {[%emt 0:01:20]} 40. Nf4 {[%emt 0:02:12][%mdl 64] Ne6+ would kill now. Deflection} Rxf4 {[%emt 0:00:52]} 41. gxf4 {[%emt 0:04:01][%cal Re1e7]} Qxf4 {[%emt 0:00:02]} 42. Rxa7 {[%emt 0:00:36]} ({Inferior is} 42. Rcxe7 Qg5+ 43. Kf1 Rxe7 $11) 42... h5 {[%emt 0:01:23]} 43. Qg3 {[%emt 0:00:22]} (43. Raxe7 Qg5+ 44. Kf1 Rxe7) 43... Qb4 {[%emt 0:00:22]} 44. Re3 {[%emt 0:01:07] Hoping for Qe5.} d4 {[%emt 0:00:02]} 45. Qf4+ {[%emt 0:00:29] White mates.} Kg8 {[%emt 0:00:20]} 46. Qe4 {[%emt 0:02:04]} Kf8 {[%emt 0:01:31]} 47. Rf3+ {[%emt 0:00:10]} Kg7 {[%emt 0:00:20]} 48. Qe5+ {[%emt 0:00:17]} Kh6 {[%emt 0:00:08]} 49. Qf4+ {[%emt 0:00:01] Artfully played by Sosa.   Weighted Error Value: White=0.19 (very precise) /Black=0.51} 1-0

[Event "35th Roquetas Festival 2024"]
[Site "Roquetas de Mar"]
[Date "2024.01.03"]
[Round "2.5"]
[White "Moral Garcia, Serafin"]
[Black "Stremavicius, Titas"]
[Result "0-1"]
[ECO "B13"]
[WhiteElo "2246"]
[BlackElo "2543"]
[Annotator "TA"]
[PlyCount "68"]
[EventDate "2024.01.02"]
[EventType "swiss"]
[EventCountry "ESP"]
[SourceTitle "playchess.com"]
[Source "ChessBase"]
[SourceQuality "1"]
[TimeControl "5400+30"]

{[%evp 11,68,0,13,-9,3,2,11,5,27,0,3,0,0,0,0,-2,0,0,0,0,0,-12,0,0,0,0,8,10,1,0,0,0,0,-62,-63,-70,-60,-66,-27,-298,-302,-306,-306,-306,-303,-419,-415,-941,-936,-1647,-1740,-2292,-745,-1584,-1049,-1226,-789,-5139,-4910]} 1. e4 {[%emt 0:00:01]} c6 {[%emt 0:00:33]} 2. d4 {[%emt 0:00:17]} d5 {[%emt 0:00:04]} 3. exd5 {[%emt 0:00:37]} cxd5 {[%emt 0:00:05]} 4. c4 {[%emt 0:00:44]} Nf6 {[%emt 0:00:06]} 5. Nc3 {[%emt 0:00:19]} Nc6 {[%emt 0:00:08]} 6. Bg5 {[%emt 0:00:49]} Ne4 {[%emt 0:00:09]} 7. Be3 {[%emt 0:05:39] B13: Caro-Kann: Exchange Variation and Panov-Botvinnik Attack.} Nxc3 {[%emt 0:07:05]} (7... e5 {is more complex.} 8. Nf3 Bb4 9. Rc1 exd4 10. Nxd4 O-O) 8. bxc3 {[%emt 0:00:14]} e6 {[%emt 0:02:15]} 9. Nf3 {[%emt 0:03:36] The position is equal.} Be7 {[%emt 0:00:17]} 10. Bd3 {[%emt 0:03:42]} dxc4 {[%emt 0:03:20]} 11. Bxc4 {[%emt 0:00:30]} O-O {[%emt 0:00:08]} 12. O-O {[%emt 0:01:22]} b6 {[%emt 0:01:11] [#]} 13. Bd3 $146 {[%emt 0:02:45]} ({Predecessor:} 13. Qe2 Bb7 14. Rfd1 Qc7 15. Bd3 Rac8 16. Rac1 h6 17. c4 e5 18. d5 Nb8 19. Bf5 {1-0 Kyc,J (2250)-Piekielny,P (2104) Krakow op-A 32nd 2021 (1)}) 13... Bb7 {[%emt 0:00:28]} 14. Qc2 {[%emt 0:02:05]} g6 {[%emt 0:01:33]} 15. Bh6 {[%emt 0:01:42]} Re8 {[%emt 0:00:04]} 16. Qd2 {[%emt 0:01:29]} Bf6 {[%emt 0:06:16]} (16... Bd6 {is interesting.} 17. Rfe1 Ne7 18. Ne5 Nf5) 17. Rfe1 {[%emt 0:04:01]} e5 {[%emt 0:03:39]} 18. Be4 {[%emt 0:06:44]} exd4 {[%emt 0:07:51]} (18... Rc8 {simplifies} 19. Nxe5 Bxe5 20. dxe5 Qxd2 21. Bxd2 Rxe5 22. f3 Rc5) 19. cxd4 {[%emt 0:00:57]} Qd6 {[%emt 0:26:45]} 20. Rad1 {[%emt 0:08:52]} Rad8 {[%emt 0:01:38]} 21. d5 {[%emt 0:07:15]} Na5 {[%emt 0:09:23][%cal Bc6a5,Ba5c4,Bc4b2][%mdl 32]} 22. Ng5 {[%emt 0:07:47]} (22. Qd3 $11) 22... Nc4 $15 {[%emt 0:01:49]} 23. Qc1 {[%emt 0:04:12]} Nb2 {[%emt 0:04:41] Active counter play!} 24. Rd2 {[%emt 0:02:33]} Na4 {[%emt 0:02:50] Threatens to win with ...Bc3.} (24... Rc8 $5 {[%cal Rc8c1]} 25. Rc2 Qb4 26. Rxc8 Rxc8 $15) 25. Rd3 {[%emt 0:04:22][%mdl 8192] [#] Repels Bc3. This costs White the game.} (25. Bf3 $11 {and White is okay.} Nc5 26. Rxe8+ Rxe8 27. g3) 25... Rc8 $1 $19 {[%emt 0:01:05]} 26. Qe3 {[%emt 0:09:31][%cal Oe4g6] Bxg6! would be deadly.} Bxg5 {[%emt 0:06:23]} 27. Qxg5 {[%emt 0:04:52] [#] Hoping for Rde3.} f5 $1 {[%emt 0:00:26][%mdl 512]} 28. Rf3 {[%emt 0:02:13]} (28. f3 fxe4) 28... Nc5 {[%emt 0:01:19]} (28... Rxe4 $2 {loses.} 29. Rxe4 fxe4 30. Rf6) ({Stronger than} 28... Bxd5 29. Bxd5+ Qxd5 30. Rfe3 $11) 29. Rxf5 {[%emt 0:05:27]} (29. Qg3 $142 Qd7 30. Rc3) 29... Nxe4 {[%emt 0:00:09] Black is clearly winning.} 30. Rxe4 {[%emt 0:00:52]} Rxe4 {[%emt 0:00:11][%cal Re4e1]} 31. g3 {[%emt 0:00:10]} Qe7 {[%emt 0:02:55]} 32. Rf6 {[%emt 0:00:08]} Re1+ {[%emt 0:01:11]} 33. Kg2 {[%emt 0:00:01]} Re6 {[%emt 0:00:13]} 34. Rxg6+ {[%emt 0:00:17]} hxg6 {[%emt 0:00:07] Weighted Error Value: White=1.47/Black=0.54} 0-1

[Event "35th Roquetas Festival 2024"]
[Site "Roquetas de Mar"]
[Date "2024.01.03"]
[Round "2.6"]
[White "Fernandez, Daniel Howard"]
[Black "Cabezas Ayala, Ivan"]
[Result "1/2-1/2"]
[ECO "A06"]
[WhiteElo "2525"]
[BlackElo "2244"]
[Annotator "TA"]
[PlyCount "83"]
[EventDate "2024.01.02"]
[EventType "swiss"]
[EventCountry "ESP"]
[SourceTitle "playchess.com"]
[Source "ChessBase"]
[SourceQuality "1"]
[TimeControl "5400+30"]

{[%evp 19,83,4,12,12,15,2,0,-10,25,0,23,18,0,16,19,19,25,14,22,17,38,39,38,30,46,53,51,30,30,32,24,7,6,0,16,28,29,16,149,158,717,716,704,664,1834,1702,1555,1365,2074,1796,2761,2129,6414,6407,6191,5883,6044,5273,29974,29975,29975,29976,29980,29981,29980,29977]} 1. g3 {[%emt 0:09:23]} d5 {[%emt 0:01:30]} 2. Nf3 {[%emt 0:02:40]} Nf6 {[%emt 0:00:43]} 3. Bg2 {[%emt 0:00:36]} e6 {[%emt 0:00:50]} 4. O-O {[%emt 0:03:26]} Be7 {[%emt 0:00:17]} 5. c4 {[%emt 0:09:53]} O-O {[%emt 0:03:08]} 6. d4 {[%emt 0:00:35]} c6 {[%emt 0:00:52]} 7. b3 {[%emt 0:00:18]} b6 {[%emt 0:02:18]} 8. Bb2 {[%emt 0:00:05]} Nbd7 {[%emt 0:03:44]} 9. Qc2 {[%emt 0:00:38]} Bb7 {[%emt 0:02:38]} 10. Nbd2 {[%emt 0:02:31]} c5 {[%emt 0:08:55]} 11. dxc5 {[%emt 0:01:24] E09: Closed Catalan: Main Line: 7 Qc2 c6 8 Nbd2.} Bxc5 {[%emt 0:00:24]} 12. Rac1 {[%emt 0:00:41]} Rc8 {[%emt 0:03:27]} 13. Qb1 {[%emt 0:00:37][%cal Ob3b4] The position is equal.} Qe7 {[%emt 0:01:39]} 14. Qa1 {[%emt 0:02:46]} (14. cxd5 {looks sharper.} exd5 15. e3 g6 16. Bh3) 14... Ba3 {[%emt 0:01:24]} 15. Rfd1 {[%emt 0:02:54]} Bxb2 {[%emt 0:11:12]} 16. Qxb2 {[%emt 0:00:02] [#]} Nc5 $146 {[%emt 0:04:47]} ({Predecessor:} 16... Rfd8 17. cxd5 Bxd5 18. Qb1 Nf8 19. Ne1 Bxg2 20. Nxg2 Ng6 21. Nc4 Rxd1+ 22. Rxd1 Rd8 {½-½ Markus,M (1566)-Toth,C (1326) HUN-chT U18 2nd 2018 (5.27)}) 17. b4 {[%emt 0:04:01]} Nce4 {[%emt 0:01:21]} 18. cxd5 {[%emt 0:00:55]} Nxd2 {[%emt 0:03:01]} 19. Qxd2 {[%emt 0:00:29] aiming for d6.} Bxd5 {[%emt 0:00:51]} 20. Ne5 {[%emt 0:00:52][%cal Rg2d5]} Bxg2 {[%emt 0:02:42]} 21. Kxg2 {[%emt 0:01:36]} Qb7+ {[%emt 0:02:06]} 22. f3 {[%emt 0:00:19]} h6 {[%emt 0:00:58]} 23. a4 {[%emt 0:06:09]} Rxc1 {[%emt 0:01:17]} 24. Rxc1 {[%emt 0:00:10]} Rc8 {[%emt 0:00:30] Inhibits Nc6.} 25. Rxc8+ {[%emt 0:07:04]} Qxc8 $11 {[%emt 0:00:05][%mdl 4096] Endgame KQN-KQN} 26. b5 {[%emt 0:15:51]} Nd5 {[%emt 0:06:41]} 27. Nc6 {[%emt 0:00:41]} Qc7 $1 {[%emt 0:00:32]} 28. Kf2 {[%emt 0:04:53]} Ne7 {[%emt 0:03:19]} (28... f5 $11 {remains equal.}) 29. Qf4 $1 $16 {[%emt 0:00:48] White has more active pieces.} Qxf4 {[%emt 0:12:35] This move loses the game for Black.} (29... e5 $16 30. Nxe5 (30. Qxe5 Qxe5 31. Nxe5 Kf8 $16) 30... Qc5+ 31. Kf1 Qd5) 30. Nxe7+ $18 {[%emt 0:01:27]} Kf8 {[%emt 0:00:04]} 31. Ng6+ {[%emt 0:00:08]} fxg6 {[%emt 0:00:05]} 32. gxf4 {[%emt 0:00:06] KP-KP} Ke7 {[%emt 0:03:59]} 33. Ke3 {[%emt 0:00:03]} Kd7 {[%emt 0:00:38]} 34. Kd4 {[%emt 0:01:36]} Kd6 {[%emt 0:00:27]} 35. h4 {[%emt 0:02:16]} Kd7 {[%emt 0:01:03]} 36. Ke5 {[%emt 0:00:26]} Ke7 {[%emt 0:00:07] [#]} 37. e4 $1 {[%emt 0:01:01]} h5 {[%emt 0:05:22] [#]} 38. f5 $1 {[%emt 0:01:14]} exf5 {[%emt 0:01:09]} 39. exf5 {[%emt 0:00:02] White mates.} gxf5 {[%emt 0:08:15]} 40. Kxf5 {[%emt 0:00:16]} Kd6 {[%emt 0:00:03]} 41. Kg6 {[%emt 0:00:50][%csl LRg7,LRh5]} Ke5 {[%emt 0:00:10]} 42. Kxg7 {[%emt 0:00:22][%mdl 32768] Weighted Error Value: White=0.07 (flawless) /Black=0.36. An unexpected result.} 1/2-1/2

[Event "35th Roquetas Festival 2024"]
[Site "Roquetas de Mar"]
[Date "2024.01.03"]
[Round "2.7"]
[White "Gonzalez Castillo, Jose Javier"]
[Black "Korneev, Oleg"]
[Result "0-1"]
[ECO "C54"]
[WhiteElo "2231"]
[BlackElo "2474"]
[Annotator "TA"]
[PlyCount "116"]
[EventDate "2024.01.02"]
[EventType "swiss"]
[EventCountry "ESP"]
[SourceTitle "playchess.com"]
[Source "ChessBase"]
[SourceQuality "1"]
[TimeControl "5400+30"]

{[%evp 22,116,23,8,14,13,13,11,18,9,0,0,0,16,24,0,0,0,0,-20,-16,-16,-14,-25,-12,-14,-15,-20,-12,-34,-18,-25,-22,-41,-35,-33,-26,-27,-40,-32,-27,-27,-27,-25,-31,-27,-25,-34,-24,-25,-25,-27,-22,-66,-33,-28,-25,-53,-22,-23,-23,-23,-23,-21,0,-19,-21,-408,-434,-772,-777,-763,-762,-741,-711,-681,-576,-670,-494,-1233,-1187,-1359,-1265,-2250,-460,-2161,-2006,-2127,-1885,-5732,-2158,-2531,-5429,-5712,-6414,-29974,-29975]} 1. e4 {[%emt 0:00:05]} e5 {[%emt 0:01:21]} 2. Nf3 {[%emt 0:00:30]} Nc6 {[%emt 0:00:04]} 3. Bc4 {[%emt 0:00:08]} Bc5 {[%emt 0:00:18]} 4. c3 {[%emt 0:00:43]} Nf6 {[%emt 0:01:22]} 5. d3 {[%emt 0:00:06]} a6 {[%emt 0:00:03]} 6. O-O {[%emt 0:00:13]} Ba7 {[%emt 0:00:01]} 7. Nbd2 {[%emt 0:00:20]} d6 {[%emt 0:00:02]} 8. Bb3 {[%emt 0:00:09]} O-O {[%emt 0:00:05]} 9. h3 {[%emt 0:00:11]} h6 {[%emt 0:01:48]} 10. Re1 {[%emt 0:00:22]} Nh5 {[%emt 0:00:08]} 11. Nf1 {[%emt 0:03:40]} Qf6 {[%emt 0:00:07]} 12. Be3 {[%emt 0:01:32]} Bxe3 {[%emt 0:00:05] C54: Giuoco Piano: 4 c3 Nf6, main lines with 5 d4 and 5 d3.} 13. Nxe3 {[%emt 0:02:31]} Nf4 {[%emt 0:00:01]} 14. Nd5 {[%emt 0:07:25]} Nxd5 {[%emt 0:00:07] The position is equal.} 15. exd5 {[%emt 0:01:31]} Ne7 {[%emt 0:00:02]} 16. d4 {[%emt 0:02:20][%cal Rd4e5]} Ng6 {[%emt 0:00:05]} 17. dxe5 {[%emt 0:04:55]} dxe5 {[%emt 0:00:03]} 18. Bc2 {[%emt 0:00:16]} Bf5 {[%emt 0:00:02] Against Qd3} 19. Bxf5 {[%emt 0:05:48]} Qxf5 {[%emt 0:00:09]} 20. Qb1 {[%emt 0:00:14]} Qxb1 {[%emt 0:00:11]} 21. Raxb1 {[%emt 0:00:06]} f6 {[%emt 0:00:26]} 22. g3 {[%emt 0:01:15]} Rfd8 {[%emt 0:10:25]} 23. c4 {[%emt 0:01:19] [#]} Kf7 $146 {[%emt 0:14:50]} ({Predecessor:} 23... c6 24. dxc6 bxc6 25. Rbd1 Kf7 26. Kf1 Nf8 27. Nd2 Rd4 28. Nf3 Rdd8 29. Nd2 Rd4 30. Nf3 Rdd8 {½-½ Xu,Y (2526)-Xiang,Z (2432) CHN-chT Daqing 2019 (4.3)}) 24. Rbd1 {[%emt 0:04:27]} Ne7 {[%emt 0:19:50]} 25. Kg2 {[%emt 0:04:38]} Rd7 {[%emt 0:05:07]} 26. Nd2 {[%emt 0:09:10]} c6 {[%emt 0:09:30]} 27. Ne4 {[%emt 0:05:24] Threatens to win with dxc6.} cxd5 {[%emt 0:00:35]} 28. cxd5 {[%emt 0:00:05]} Rad8 {[%emt 0:10:17]} 29. Nc5 {[%emt 0:08:42]} Rxd5 {[%emt 0:00:24]} 30. Rxd5 {[%emt 0:00:05]} Rxd5 {[%emt 0:00:08]} 31. Nxb7 $11 {[%emt 0:00:34][%mdl 4096] Endgame KRN-KRN} Rd2 {[%emt 0:00:02]} 32. Rb1 $1 {[%emt 0:06:02]} e4 {[%emt 0:02:26] ...e3 would be deadly.} 33. Kg1 {[%emt 0:06:39]} f5 {[%emt 0:02:52]} 34. Nc5 {[%emt 0:00:59]} a5 {[%emt 0:00:01][%cal Ba6a5,Ba5a4][%mdl 32]} 35. Nb3 {[%emt 0:04:59][%csl LRa5,LRd2]} Rd5 {[%emt 0:00:04]} 36. Rc1 g5 {[%emt 0:05:38]} 37. Rc5 {[%emt 0:02:03]} Rd1+ {[%emt 0:00:20]} 38. Kg2 {[%emt 0:00:15]} a4 {[%emt 0:00:14]} 39. Na5 {[%emt 0:01:00]} Nd5 (39... Kf6 $5 {[%cal Rf5f4]} 40. Nc4 f4 41. gxf4 gxf4 $15) 40. Nc4 {[%emt 0:00:50]} Ke7 {[%emt 0:05:01]} 41. Ra5 {[%emt 0:11:10]} f4 {[%emt 0:01:04]} 42. Rxa4 {[%emt 0:02:20]} f3+ {[%emt 0:01:20]} 43. Kh2 {[%emt 0:00:00]} Kd8 {[%emt 0:03:36]} 44. Ra3 {[%emt 0:04:00][%mdl 8192] [#] This move loses the game for White.} (44. g4 $11) 44... Rf1 $1 $19 {[%emt 0:00:17]} 45. Ne3 {[%emt 0:00:13]} (45. h4 $142 Rxf2+ 46. Kg1 Rg2+ 47. Kf1) 45... Nxe3 {[%emt 0:04:10]} (45... Rxf2+ 46. Kg1 Rd2 47. Ra8+ Kc7 48. Ra7+ Kc6 49. Ra6+ Kb7 50. Ra3 $19) 46. Rxe3 {[%emt 0:00:54]} Rxf2+ {[%emt 0:00:04] KR-KR} 47. Kg1 {[%emt 0:00:02] [#]} Rg2+ $1 {[%emt 0:01:11]} (47... Rxb2 48. Rxe4 Rg2+ 49. Kf1 $15) 48. Kf1 {[%emt 0:00:01]} Rxg3 {[%emt 0:00:05]} ({Worse is} 48... Rxb2 49. Rxe4 Kd7 50. a4 $11) 49. Rxe4 {[%emt 0:00:16]} Rxh3 {[%emt 0:00:01] Strongly threatening ...h5.} 50. a4 {[%emt 0:01:47]} (50. Rg4 $142 Ke7 51. Kf2) 50... h5 {[%emt 0:00:32]} 51. a5 {[%emt 0:01:10]} g4 {[%emt 0:00:12] ( -> ...g3)} 52. Rf4 {[%emt 0:00:45]} Rh1+ {[%emt 0:01:08]} 53. Kf2 {[%emt 0:00:03]} Rh2+ {[%emt 0:00:09][%mdl 64] Skewer} 54. Kg3 {[%emt 0:01:57]} Rxb2 {[%emt 0:00:03] And now ...Rg2+ would win.} 55. a6 {[%emt 0:01:03]} Kc7 {[%emt 0:00:07]} 56. Rf7+ {[%emt 0:00:38]} Kb8 {[%emt 0:00:13] ...Rg2+ is the strong threat.} 57. Rf5 {[%emt 0:00:24]} Rg2+ {[%emt 0:00:18]} 58. Kh4 {[%emt 0:00:17]} f2 {[%emt 0:00:10] Weighted Error Value: White=1.10/Black=0.02 (flawless)} 0-1